bitfinex/quotes_SOLUSD_20251125
["timestamp","ask_amount","ask_price","bid_price","bid_amount"]
[1764094331768,9.86358128,137.54,137.51,1.99999999]
[1764094332084,6.60358128,137.55,137.53,1.99999999]
[1764094332378,3.26,137.55,137.54,1.99999999]
[1764094332578,10.55358128,137.56,137.54,1.99999999]
[1764094333160,9.86358128,137.57,137.54,1.99999999]
[1764094333360,6.60358128,137.56,137.54,1.99999999]
[1764094333679,6.60358128,137.57,137.54,71.07028143]
[1764094333859,26.83784966,137.58,137.55,1.99999999]
[1764094333860,6.60358128,137.58,137.55,1.99999999]
[1764094334057,6.60358128,137.58,137.56,1.99999999]
[1764094334280,0.69,137.57,137.56,1.99999999]
[1764094334461,7.29358128,137.58,137.57,1.99999999]
[1764094334663,6.60358128,137.58,137.57,1.99999999]
[1764094334864,7.29358128,137.58,137.56,1.99999999]
[1764094335065,7.29358128,137.58,137.56,9.26948496]
[1764094335275,3.26,137.59,137.57,1.99999999]
[1764094335584,3.26,137.59,137.56,1.99999999]
[1764094335585,7.29358128,137.58,137.56,1.99999999]
[1764094336291,6.60358128,137.59,137.57,1.99999999]
[1764094336979,10.55358128,137.6,137.57,9.26862119]
[1764094337360,10.55358128,137.6,137.58,1.99999999]
[1764094337777,0.69,137.59,137.58,1.99999999]
[1764094338184,9.86358128,137.6,137.58,1.99999999]
[1764094338482,7.29358128,137.59,137.56,1.99999999]
[1764094338792,6.60358128,137.58,137.56,1.99999999]
[1764094339084,9.86358128,137.57,137.55,1.99999999]
[1764094339280,10.55358128,137.57,137.55,1.99999999]
[1764094340185,10.55358128,137.57,137.56,1.99999999]
[1764094340969,3.26,137.57,137.56,9.26955509]
[1764094341271,3.26,137.57,137.56,1.99999999]
[1764094341689,9.86358128,137.58,137.56,1.99999999]
[1764094341878,3.26,137.58,137.56,1.99999999]
[1764094342069,7.29358128,137.57,137.55,1.99999999]
[1764094342589,0.69,137.56,137.55,1.99999999]
[1764094342753,7.29358128,137.56,137.53,1.99999999]
[1764094342953,6.60358128,137.54,137.53,1.99999999]
[1764094343385,9.86358128,137.56,137.54,1.99999999]
[1764094343685,10.55358128,137.56,137.54,1.99999999]
[1764094344388,9.86358128,137.56,137.54,1.99999999]
[1764094344591,7.29358128,137.55,137.53,1.99999999]
[1764094345271,10.55358128,137.55,137.53,1.99999999]
[1764094345582,9.86358128,137.55,137.53,1.99999999]
[1764094345792,3.95,137.55,137.54,1.99999999]
[1764094345988,3.26,137.56,137.54,1.99999999]
[1764094346190,3.26,137.56,137.55,1.99999999]
[1764094346573,3.26,137.56,137.55,9.27008359]
[1764094347685,7.29358128,137.58,137.56,1.99999999]
[1764094347686,6.60358128,137.58,137.56,1.99999999]
[1764094347919,6.60358128,137.6,137.58,1.99999999]
[1764094348105,3.26,137.6,137.58,1.99999999]
[1764094348274,7.49358128,137.62,137.58,1.99999999]
[1764094348481,7.49358128,137.62,137.57,6.60358128]
[1764094348482,4.15,137.62,137.59,9.26774052]
[1764094348790,0.89,137.62,137.59,9.26774052]
[1764094348989,4.15,137.62,137.59,9.26774052]
[1764094349209,10.75358128,137.62,137.59,9.26774052]
[1764094349994,10.75358128,137.62,137.59,1.99999999]
[1764094349995,6.60358128,137.6,137.59,1.99999999]
[1764094350589,0.69,137.6,137.59,1.99999999]
[1764094350804,0.69,137.6,137.58,7.26843645]
[1764094350805,7.29358128,137.6,137.58,1.99999999]
[1764094350975,9.86358128,137.59,137.57,1.99999999]
[1764094351292,10.55358128,137.59,137.57,9.26901281]
[1764094351981,10.55358128,137.59,137.56,1.99999999]
[1764094351982,7.29358128,137.58,137.56,1.99999999]
[1764094352880,7.29358128,137.58,137.57,1.99999999]
[1764094353291,7.29358128,137.6,137.57,1.99999999]
[1764094353495,3.26,137.59,137.57,1.99999999]
[1764094353974,6.60358128,137.61,137.57,1.99999999]
[1764094354192,10.55358128,137.6,137.57,1.99999999]
[1764094355090,0.69,137.59,137.57,1.99999999]
[1764094355477,17.13146822,137.6,137.56,9.26955463]
[1764094355675,17.82146822,137.6,137.57,1.99999999]
[1764094355877,6.60358128,137.59,137.57,1.99999999]
[1764094356078,7.29358128,137.59,137.57,1.99999999]
[1764094356289,7.29358128,137.59,137.56,9.26955463]
[1764094356685,14.56172439,137.59,137.56,1.99999999]
[1764094356892,7.29358128,137.59,137.56,9.2695507]
[1764094357482,14.56166902,137.59,137.57,1.99999999]
[1764094358883,14.56166902,137.59,137.56,7.26955071]
[1764094358884,7.29358128,137.58,137.56,1.99999999]
[1764094359290,0.69,137.61,137.57,1.99999999]
[1764094359492,3.26,137.6,137.59,1.99999999]
[1764094360206,3.26,137.6,137.56,34.25318656]
[1764094360207,3.95,137.6,137.58,1.99999999]
[1764094360582,3.26,137.6,137.58,1.99999999]
[1764094360905,3.26,137.6,137.55,6.62358128]
[1764094360906,3.26,137.6,137.59,9.26797004]
[1764094361093,3.26,137.6,137.59,1.99999999]
[1764094362005,0.2,137.62,137.61,1.99999999]
[1764094362796,0.2,137.62,137.61,9.26691373]
[1764094363109,0.2,137.62,137.61,1.99999999]
[1764094364493,0.2,137.62,137.61,2.01999999]
[1764094364801,0.2,137.62,137.61,9.26691373]
[1764094366307,0.2,137.62,137.61,18.09685865]
[1764094366512,0.2,137.62,137.61,18.07685865]
[1764094367801,0.2,137.62,137.61,9.26691373]
[1764094368706,7.49358128,137.62,137.61,1.99999999]
[1764094368906,14.76004806,137.62,137.6,1.99999999]
[1764094369116,7.29358128,137.61,137.58,9.2684514]
[1764094369424,6.60358128,137.6,137.58,1.99999999]
[1764094369588,7.29358128,137.6,137.58,1.99999999]
[1764094369788,0.69,137.59,137.58,1.99999999]
[1764094371003,7.29358128,137.59,137.58,1.99999999]
[1764094371203,14.56161388,137.59,137.57,1.99999999]
[1764094371390,10.55358128,137.58,137.57,1.99999999]
[1764094371811,10.55358128,137.58,137.55,1.99999999]
[1764094372003,10.55358128,137.58,137.56,1.99999999]
[1764094372004,7.29358128,137.57,137.56,1.99999999]
[1764094372825,15.4529632,137.59,137.57,1.99999999]
[1764094373120,12.1929632,137.59,137.58,1.99999999]
[1764094373312,11.5029632,137.6,137.58,1.99999999]
[1764094373497,14.7629632,137.6,137.59,1.99999999]
[1764094373890,7.46653467,137.62,137.59,1.99999999]
[1764094373891,0.2,137.62,137.59,1.99999999]
[1764094374094,12.1629632,137.6,137.58,1.99999999]
[1764094374303,11.5029632,137.59,137.58,1.99999999]
[1764094374499,12.1629632,137.59,137.58,1.99999999]
[1764094375307,12.1629632,137.59,137.57,1.99999999]
[1764094375505,12.1629632,137.59,137.58,1.99999999]
[1764094376625,12.1629632,137.59,137.57,1.99999999]
[1764094376833,7.26746986,137.6,137.57,1.99999999]
[1764094376834,12.1629632,137.58,137.57,1.99999999]
[1764094377761,11.5029632,137.59,137.57,9.26894499]
[1764094378245,0.66,137.6,137.58,1.99999999]
[1764094378406,14.7629632,137.6,137.58,1.99999999]
[1764094378828,12.1629632,137.59,137.58,1.99999999]
[1764094379412,19.43093325,137.59,137.56,1.99999999]
[1764094379613,0.67,137.58,137.57,1.99999999]
[1764094379918,0.67,137.58,137.56,1.99999999]
[1764094380113,3.26,137.57,137.54,1.99999999]
[1764094380533,0.67,137.56,137.54,1.99999999]
[1764094380708,12.1729632,137.56,137.54,1.99999999]
[1764094381208,12.1729632,137.56,137.53,9.27099717]
[1764094381209,11.5029632,137.56,137.53,9.27099717]
[1764094381510,0.67,137.55,137.52,9.27149597]
[1764094381826,12.1729632,137.56,137.55,1.99999999]
[1764094382036,12.1729632,137.56,137.53,9.27105931]
[1764094382341,12.1729632,137.56,137.54,1.99999999]
[1764094382508,12.1729632,137.56,137.53,9.27105931]
[1764094382835,0.67,137.56,137.54,1.99999999]
[1764094383029,12.1729632,137.55,137.52,1.99999999]
[1764094383249,12.1729632,137.55,137.5,3.26]
[1764094383250,11.5029632,137.54,137.53,1.99999999]
[1764094383420,15.4329632,137.54,137.5,1.99999999]
[1764094383746,11.5029632,137.51,137.5,1.99999999]
[1764094383923,3.26,137.52,137.51,1.99999999]
[1764094384233,15.4329632,137.53,137.51,1.99999999]
[1764094384617,12.1729632,137.53,137.51,1.99999999]
[1764094384937,12.1729632,137.55,137.52,9.27166956]
[1764094385110,11.5029632,137.53,137.49,1.99999999]
[1764094385316,11.5029632,137.5,137.45,63.79999999]
[1764094385634,11.5029632,137.47,137.45,1.99999999]
[1764094385943,11.5029632,137.46,137.44,9.27574494]
[1764094386435,11.5029632,137.46,137.45,1.99999999]
[1764094386609,11.5029632,137.47,137.45,1.99999999]
[1764094386812,11.5029632,137.47,137.46,1.99999999]
[1764094387006,11.5029632,137.48,137.46,9.27484358]
[1764094387211,12.1729632,137.48,137.46,9.27484358]
[1764094387412,15.4329632,137.48,137.46,9.27484358]
[1764094388149,15.4329632,137.48,137.46,1.99999999]
[1764094388329,14.7629632,137.48,137.45,1.99999999]
[1764094388529,7.27283378,137.5,137.44,1.99999999]
[1764094388530,11.5029632,137.46,137.44,1.99999999]
[1764094388735,14.7629632,137.46,137.44,1.99999999]
[1764094389034,11.5029632,137.48,137.46,1.99999999]
[1764094389238,0.67,137.47,137.46,1.99999999]
[1764094390431,3.26,137.48,137.46,1.99999999]
[1764094390632,12.1729632,137.5,137.47,1.99999999]
[1764094390836,12.1729632,137.5,137.48,1.99999999]
[1764094391041,11.5029632,137.49,137.48,1.99999999]
[1764094391343,12.1729632,137.49,137.48,1.99999999]
[1764094391941,12.1729632,137.49,137.47,1.99999999]
[1764094392920,12.1729632,137.48,137.45,1.99999999]
[1764094393126,11.5029632,137.46,137.44,1.99999999]
[1764094393449,11.5029632,137.45,137.44,1.99999999]
[1764094393653,11.5029632,137.45,137.44,63.79999999]
[1764094394648,12.1729632,137.45,137.44,63.79999999]
[1764094394827,12.1729632,137.45,137.44,61.8]
[1764094395035,12.1729632,137.45,137.44,63.79999999]
[1764094395949,0.67,137.45,137.44,63.79999999]
[1764094396142,11.5029632,137.46,137.44,63.79999999]
[1764094396339,12.1729632,137.46,137.44,71.07578524]
[1764094396517,12.1729632,137.48,137.45,1.99999999]
[1764094396718,12.1729632,137.48,137.46,1.99999999]
[1764094397143,12.1729632,137.48,137.46,9.27475065]
[1764094397338,0.67,137.47,137.46,1.99999999]
[1764094397547,12.1729632,137.47,137.46,1.99999999]
[1764094399053,12.1729632,137.47,137.45,9.2751738]
[1764094399232,12.1729632,137.47,137.46,1.99999999]
[1764094399548,0.67,137.46,137.44,61.8]
[1764094399764,11.5029632,137.45,137.44,61.8]
[1764094399922,3.93,137.46,137.44,1.99999999]
[1764094400123,11.5029632,137.48,137.44,1.99999999]
[1764094400319,11.5029632,137.48,137.46,1.99999999]
[1764094400320,12.1729632,137.48,137.46,1.99999999]
[1764094401133,18.77676317,137.48,137.46,1.99999999]
[1764094401334,12.1729632,137.47,137.44,9.2757035]
[1764094401646,11.5029632,137.46,137.44,9.2757035]
[1764094401848,12.1729632,137.47,137.44,9.2757035]
[1764094402051,12.1729632,137.47,137.45,1.99999999]
[1764094402973,12.1729632,137.47,137.46,1.99999999]
[1764094403253,20.278864,137.49,137.46,1.99999999]
[1764094403451,0.71,137.48,137.46,1.99999999]
[1764094403630,11.5029632,137.48,137.46,9.27445339]
[1764094403826,15.4729632,137.49,137.47,1.99999999]
[1764094405355,3.26,137.49,137.47,9.27406948]
[1764094405534,11.5029632,137.5,137.48,1.99999999]
[1764094406064,0.71,137.5,137.48,1.99999999]
[1764094407543,0.71,137.5,137.48,9.27346382]
[1764094408654,19.568864,137.51,137.48,9.27346382]
[1764094408960,11.5029632,137.49,137.48,1.99999999]
[1764094409254,0.71,137.5,137.48,1.99999999]
[1764094409456,11.5029632,137.49,137.48,1.99999999]
[1764094410857,11.5029632,137.49,137.47,1.99999999]
[1764094410858,12.2129632,137.49,137.47,1.99999999]
[1764094411160,12.2129632,137.48,137.47,1.99999999]
[1764094411532,12.2129632,137.48,137.45,9.2751332]
[1764094411841,11.5029632,137.46,137.45,1.99999999]
[1764094412366,0.71,137.47,137.45,1.99999999]
[1764094412367,12.2129632,137.47,137.46,1.99999999]
[1764094413760,12.2129632,137.47,137.45,9.27531592]
[1764094414341,12.2129632,137.46,137.44,9.27577496]
[1764094414545,11.5029632,137.45,137.44,1.99999999]
[1764094414860,12.2129632,137.46,137.44,9.2759022]
[1764094415547,14.7429632,137.47,137.45,1.99999999]
[1764094415747,15.4529632,137.47,137.45,1.99999999]
[1764094416154,0.71,137.52,137.48,1.99999999]
[1764094416376,14.7429632,137.51,137.48,1.99999999]
[1764094416548,14.7429632,137.51,137.49,1.99999999]
[1764094416750,12.2129632,137.51,137.49,1.99999999]
[1764094416931,12.2129632,137.5,137.48,1.99999999]
[1764094417132,11.5029632,137.49,137.47,9.27430765]
[1764094417370,12.2129632,137.49,137.48,1.99999999]
[1764094417574,11.5029632,137.5,137.48,1.99999999]
[1764094418038,12.2129632,137.49,137.48,1.99999999]
[1764094418234,0.71,137.51,137.48,1.99999999]
[1764094418537,5.04919016,137.52,137.49,1.99999999]
[1764094418962,4.33919016,137.52,137.49,1.99999999]
[1764094419147,0.71,137.51,137.49,9.27284366]
[1764094419742,4.33919016,137.52,137.49,9.27284366]
[1764094419948,0.71,137.52,137.5,1.99999999]
[1764094420764,5.04919016,137.52,137.5,1.99999999]
[1764094421247,5.04919016,137.51,137.5,1.99999999]
[1764094422466,0.71,137.51,137.5,9.27272726]
[1764094422988,4.33919016,137.52,137.5,9.27272726]
[1764094423272,0.71,137.52,137.5,9.27272726]
[1764094423460,7.57919016,137.53,137.51,1.99999999]
[1764094423765,0.71,137.55,137.51,1.99999999]
[1764094423951,0.71,137.55,137.53,1.99999999]
[1764094424148,0.71,137.55,137.52,1.99999999]
[1764094424353,0.71,137.55,137.53,1.99999999]
[1764094424845,7.57919016,137.56,137.55,1.99999999]
[1764094424846,4.33919016,137.56,137.55,1.99999999]
[1764094425053,4.33919016,137.56,137.51,7.59919016]
[1764094425054,5.04919016,137.56,137.54,1.99999999]
[1764094425868,5.04919016,137.56,137.55,1.99999999]
[1764094426041,0.71,137.56,137.55,1.99999999]
[1764094426237,4.33919016,137.57,137.55,1.99999999]
[1764094426464,0.71,137.56,137.55,1.99999999]
[1764094427367,10.50853241,137.58,137.55,9.27008359]
[1764094427368,3.24,137.58,137.55,9.27008359]
[1764094427563,0.71,137.57,137.55,9.27008359]
[1764094428069,5.04919016,137.57,137.55,1.99999999]
[1764094428272,4.33919016,137.56,137.55,1.99999999]
[1764094428572,5.04919016,137.56,137.54,1.99999999]
[1764094428762,5.04919016,137.55,137.54,1.99999999]
[1764094429075,0.71,137.55,137.54,1.99999999]
[1764094429457,5.04919016,137.55,137.54,1.99999999]
[1764094430367,12.31927376,137.55,137.52,1.99999999]
[1764094430552,4.33919016,137.53,137.52,1.99999999]
[1764094431055,5.04919016,137.53,137.52,1.99999999]
[1764094431377,5.04919016,137.53,137.5,9.27265031]
[1764094431562,0.71,137.52,137.51,1.99999999]
[1764094431761,5.04919016,137.52,137.5,1.99999999]
[1764094432069,4.33919016,137.53,137.51,1.99999999]
[1764094432273,3.95,137.54,137.51,1.99999999]
[1764094432581,8.28919016,137.54,137.52,1.99999999]
[1764094433050,3.95,137.54,137.52,1.99999999]
[1764094433251,0.71,137.54,137.52,1.99999999]
[1764094433448,19.548864,137.56,137.53,7.27114084]
[1764094433744,3.95,137.56,137.54,1.99999999]
[1764094434043,5.04919016,137.55,137.52,9.27145881]
[1764094434246,3.24,137.56,137.54,1.99999999]
[1764094434472,4.33919016,137.57,137.55,1.99999999]
[1764094434671,3.95,137.58,137.55,1.99999999]
[1764094434881,6.72479939,137.58,137.55,1.99999999]
[1764094435066,0.71,137.57,137.55,1.99999999]
[1764094435379,2.77479939,137.56,137.55,1.99999999]
[1764094435753,0.71,137.57,137.55,1.99999999]
[1764094435958,2.77479939,137.56,137.55,1.99999999]
[1764094436563,3.48479939,137.57,137.55,1.99999999]
[1764094436760,3.48479939,137.57,137.55,9.26997411]
[1764094437076,3.48479939,137.57,137.55,1.99999999]
[1764094437276,3.48479939,137.56,137.54,1.99999999]
[1764094437862,3.48479939,137.56,137.54,9.27057399]
[1764094438257,0.71,137.56,137.54,9.27057399]
[1764094438461,3.48479939,137.58,137.55,1.99999999]
[1764094438775,0.71,137.57,137.55,9.27000293]
[1764094442378,0.71,137.57,137.55,7.27000294]
[1764094442573,0.71,137.57,137.55,9.27000293]
[1764094442883,3.48479939,137.57,137.55,9.27000293]
[1764094443180,3.48479939,137.57,137.55,1.99999999]
[1764094444286,3.48479939,137.57,137.55,63.79999999]
[1764094444775,2.77479939,137.57,137.55,63.79999999]
[1764094444987,0.68,137.56,137.55,63.79999999]
[1764094445378,3.45479939,137.56,137.55,61.8]
[1764094445883,38.178864,137.54,137.4,1.52132214]
[1764094446066,7.27802037,137.4,137.32,0.91]
[1764094446379,3.28,137.39,137.35,0.91]
[1764094446568,2.77479939,137.37,137.35,0.91]
[1764094446770,2.77479939,137.36,137.35,0.2]
[1764094446978,6.05479939,137.36,137.35,0.2]
[1764094447277,6.65479939,137.36,137.35,0.2]
[1764094448182,13.93493916,137.36,137.35,0.2]
[1764094448586,24.42237463,137.36,137.35,0.2]
[1764094448770,24.42237463,137.36,137.32,0.2]
[1764094448771,25.11880892,137.35,137.32,0.2]
[1764094448958,16.04106235,137.35,137.32,0.2]
[1764094449572,0.6,137.35,137.32,0.2]
[1764094449777,7.23111743,137.35,137.32,0.2]
[1764094450792,14.51178725,137.35,137.32,0.2]
[1764094454161,23.32173217,137.35,137.34,1e-08]
[1764094454361,16.308864,137.32,137.3,0.2]
[1764094454557,9.91111743,137.31,137.3,0.2]
[1764094454759,10.51111743,137.31,137.3,0.2]
[1764094456386,20.71350966,137.31,137.3,0.2]
[1764094456586,29.52345458,137.31,137.3,0.2]
[1764094457807,45.83231858,137.31,137.3,0.2]
[1764094458173,29.52345458,137.31,137.3,1e-08]
[1764094458385,23.59324628,137.28,137.27,0.1]
[1764094458585,34.10436371,137.28,137.27,0.1]
[1764094458979,52.46566697,137.28,137.27,0.1]
[1764094459208,29.79348719,137.28,137.27,0.1]
[1764094459376,33.50436371,137.28,137.27,0.1]
[1764094460172,34.10436371,137.28,137.27,0.1]
[1764094460486,33.50436371,137.28,137.27,0.1]
[1764094461071,40.13548114,137.28,137.27,0.1]
[1764094461879,40.73548114,137.28,137.27,0.1]
[1764094462173,8.80994492,137.27,137.22,0.2]
[1764094462396,6.63111743,137.23,137.22,0.2]
[1764094462587,9.91111743,137.23,137.22,0.91]
[1764094466499,17.19815379,137.23,137.22,0.2]
[1764094466702,26.60809871,137.23,137.22,0.2]
[1764094467001,15.44106235,137.22,137.21,0.1]
[1764094467299,29.79742101,137.23,137.21,0.8]
[1764094467502,6.63111743,137.22,137.21,0.1]
[1764094468205,26.87595869,137.23,137.21,0.1]
[1764094468507,9.91111743,137.22,137.21,0.1]
[1764094468893,17.19868483,137.22,137.21,0.1]
[1764094469080,17.19868483,137.22,137.21,0.8]
[1764094469405,17.19868483,137.22,137.21,0.1]
[1764094470904,26.60862975,137.22,137.21,0.1]
[1764094471088,8.80994492,137.21,137.17,0.1]
[1764094471285,6.63111743,137.18,137.17,0.1]
[1764094471601,9.91111743,137.18,137.17,0.1]
[1764094473019,17.2008098,137.18,137.17,0.1]
[1764094475900,9.91111743,137.18,137.17,0.1]
[1764094476084,17.2008098,137.18,137.17,0.1]
[1764094476289,17.2008098,137.18,137.17,0.8]
[1764094476290,3.28,137.18,137.17,0.8]
[1764094476490,9.91111743,137.18,137.17,0.8]
[1764094478096,17.2008098,137.18,137.17,0.1]
[1764094478921,26.01075472,137.18,137.17,0.1]
[1764094479215,17.2008098,137.18,137.17,0.1]
[1764094479694,10.56969237,137.18,137.17,0.1]
[1764094479889,17.2008098,137.18,137.17,0.1]
[1764094480202,17.2008098,137.18,137.17,0.8]
[1764094480793,17.2008098,137.18,137.17,0.1]
[1764094483611,17.8008098,137.18,137.17,0.1]
[1764094483803,17.2008098,137.18,137.17,0.1]
[1764094484126,17.2008098,137.18,137.17,0.8]
[1764094485821,9.91111743,137.18,137.17,0.8]
[1764094486198,17.2008098,137.18,137.17,0.8]
[1764094487124,9.91111743,137.18,137.17,0.8]
[1764094487322,3.28,137.18,137.17,0.8]
[1764094487709,9.91111743,137.18,137.17,0.1]
[1764094488213,17.2008098,137.18,137.17,0.1]
[1764094488612,10.56969237,137.18,137.17,0.1]
[1764094488921,17.2008098,137.18,137.17,0.1]
[1764094489300,17.2008098,137.18,137.17,0.02089251]
[1764094489500,26.01075472,137.18,137.17,0.02089251]
[1764094489730,26.61075472,137.18,137.17,0.02089251]
[1764094490402,26.61075472,137.18,137.17,0.00089251]
[1764094490733,42.91961872,137.18,137.17,0.00089251]
[1764094490933,36.28850129,137.18,137.17,0.00089251]
[1764094491108,33.5096738,137.18,137.17,0.00089251]
[1764094491624,33.4896738,137.18,137.17,0.00089251]
[1764094491837,26.19998143,137.18,137.17,0.70089251]
[1764094492003,33.4896738,137.18,137.17,0.70089251]
[1764094492205,33.4896738,137.18,137.17,0.00089251]
[1764094492618,29.64979209,137.18,137.17,0.00089251]
[1764094493716,29.64979209,137.18,137.17,0.69089251]
[1764094495523,29.64979209,137.18,137.17,0.00089251]
[1764094495837,30.24979209,137.18,137.17,0.00089251]
[1764094496610,40.6310674,137.18,137.17,0.00089251]
[1764094498211,16.308864,137.15,137.13,0.2]
[1764094498411,7.62256611,137.14,137.13,0.2]
[1764094499035,7.62256611,137.14,137.13,0.89]
[1764094499540,3.26,137.14,137.13,0.89]
[1764094500428,7.62256611,137.14,137.13,0.87]
[1764094501313,14.91438468,137.14,137.13,0.87]
[1764094501927,14.91438468,137.14,137.13,0.2]
[1764094502121,3.26,137.18,137.13,8.16235032]
[1764094502329,4.36256611,137.14,137.13,0.87]
[1764094502527,4.36256611,137.14,137.13,0.2]
[1764094502725,7.62256611,137.15,137.13,0.87]
[1764094503130,3.26,137.15,137.14,0.67]
[1764094503337,7.62256611,137.15,137.13,0.2]
[1764094503537,7.62256611,137.15,137.13,0.87]
[1764094503741,16.308864,137.19,137.13,8.16222642]
[1764094504045,14.91225848,137.18,137.14,0.67]
[1764094504741,7.62256611,137.18,137.14,0.67]
[1764094505041,4.36256611,137.17,137.14,0.67]
[1764094505239,4.36256611,137.16,137.14,0.67]
[1764094505818,11.65351938,137.16,137.14,0.67]
[1764094506018,7.62256611,137.15,137.13,0.2]
[1764094506219,7.62256611,137.15,137.13,0.87]
[1764094506414,4.36256611,137.14,137.13,0.2]
[1764094506629,20.67143011,137.14,137.13,0.2]
[1764094506821,34.92778649,137.16,137.13,0.87]
[1764094506822,23.59981727,137.16,137.13,0.87]
[1764094507024,31.22238338,137.16,137.13,0.87]
[1764094507234,4.36256611,137.14,137.13,0.2]
[1764094507432,20.67143011,137.14,137.13,0.2]
[1764094507640,16.308864,137.14,137.13,0.2]
[1764094507848,16.308864,137.14,137.13,0.87]
[1764094508022,11.65414349,137.15,137.13,0.87]
[1764094508224,11.65414349,137.15,137.14,0.67]
[1764094508944,11.65414349,137.15,137.13,0.2]
[1764094509132,14.91351646,137.16,137.14,0.67]
[1764094509527,4.36256611,137.15,137.13,0.2]
[1764094509841,11.65438468,137.14,137.13,0.2]
[1764094510148,27.96324868,137.14,137.13,0.2]
[1764094510650,37.3731936,137.14,137.13,0.2]
[1764094511160,0.6,137.2,137.13,0.87]
[1764094511335,4.36256611,137.15,137.13,0.2]
[1764094511530,7.64256611,137.15,137.13,0.2]
[1764094511731,7.64256611,137.15,137.13,0.87]
[1764094512341,14.9340904,137.15,137.13,0.87]
[1764094512748,3.28,137.15,137.13,0.2]
[1764094513081,3.28,137.19,137.14,5.03256611]
[1764094513230,3.28,137.19,137.15,4.36256611]
[1764094513432,3.28,137.19,137.16,4.36256611]
[1764094513647,3.28,137.19,137.16,5.03256611]
[1764094513834,16.308864,137.2,137.17,0.67]
[1764094514040,23.95143011,137.21,137.18,4.36256611]
[1764094514041,3.28,137.21,137.18,4.36256611]
[1764094514243,3.28,137.21,137.19,0.67]
[1764094514437,19.588864,137.21,137.19,0.67]
[1764094514635,4.36256611,137.21,137.17,0.67]
[1764094514849,4.36256611,137.19,137.17,0.67]
[1764094515076,7.64256611,137.19,137.15,0.67]
[1764094515651,4.36256611,137.17,137.13,7.49211839]
[1764094515853,4.36256611,137.18,137.14,0.67]
[1764094516260,3.28,137.18,137.15,4.36256611]
[1764094516561,4.36256611,137.2,137.15,4.36256611]
[1764094516562,14.93138018,137.2,137.16,7.29075532]
[1764094516760,14.93138018,137.2,137.16,7.96075532]
[1764094517065,14.93138018,137.2,137.17,0.67]
[1764094517263,3.28,137.2,137.17,0.67]
[1764094517561,3.28,137.2,137.17,5.03256611]
[1764094517933,3.28,137.2,137.18,0.67]
[1764094518865,10.568651,137.2,137.18,0.67]
[1764094519048,14.93121711,137.2,137.18,0.67]
[1764094519443,4.36256611,137.19,137.16,0.67]
[1764094521664,3.28,137.2,137.17,5.03256611]
[1764094521837,3.28,137.2,137.18,0.67]
[1764094522446,10.56868233,137.2,137.18,0.67]
[1764094522856,7.28868233,137.2,137.18,0.67]
[1764094524372,0.2,137.31,137.19,8.72513222]
[1764094524565,4.36256611,137.3,137.25,4.36256611]
[1764094524767,0.2,137.31,137.26,5.06256611]
[1764094524963,0.2,137.31,137.27,11.64747905]
[1764094525162,0.2,137.31,137.27,7.98491294]
[1764094525370,0.2,137.31,137.27,0.7]
[1764094525542,4.36256611,137.3,137.27,0.7]
[1764094525938,7.48286905,137.31,137.27,0.7]
[1764094525939,4.36256611,137.29,137.27,0.7]
[1764094526164,4.36256611,137.29,137.24,7.28602259]
[1764094526367,4.36256611,137.29,137.25,0.7]
[1764094526676,11.55257843,137.28,137.24,0.7]
[1764094527541,19.588864,137.29,137.24,7.98626665]
[1764094527740,31.14144243,137.29,137.24,19.53884508]
[1764094527955,31.14144243,137.29,137.25,0.7]
[1764094528165,19.588864,137.29,137.25,12.25257843]
[1764094528349,11.55257843,137.28,137.21,23.59690136]
[1764094528552,27.86144243,137.29,137.25,0.7]
[1764094528938,18.83884508,137.38,137.25,0.7]
[1764094528939,0.6,137.4,137.29,25.11880892]
[1764094529143,11.55257843,137.41,137.34,11.55257843]
[1764094529373,11.55257843,137.39,137.34,11.55257843]
[1764094529572,7.27924656,137.38,137.34,12.25257843]
[1764094530067,0.1,137.42,137.35,8.80994492]
[1764094530268,0.1,137.42,137.36,0.7]
[1764094530451,0.1,137.42,137.4,11.55257843]
[1764094530644,0.1,137.42,137.39,11.55257843]
[1764094530965,0.1,137.42,137.4,11.55257843]
[1764094531141,0.1,137.42,137.37,11.55257843]
[1764094531346,18.92955242,137.42,137.37,11.55257843]